fUST/lending_fUST_20240630
["ID","MTS","AMOUNT","RATE_DAILY","PERIOD"]
[330659831,1719696644220,-785.28,0.00016811,2]
[330659832,1719696644229,-500.0,0.00016811,2]
[330659833,1719696644238,-500.0,0.00016811,2]
[330659834,1719696644248,-500.0,0.00016811,2]
[330659835,1719696644257,-597.04,0.00016811,2]
[330659836,1719696644267,-1115.09,0.00016811,2]
[330659837,1719696644276,-500.0,0.00016811,2]
[330659838,1719696644285,-500.0,0.00016811,2]
[330659839,1719696644294,-500.0,0.00016811,2]
[330659840,1719696644304,-500.0,0.00016811,2]
[330659841,1719696644313,-500.0,0.00016811,2]
[330659842,1719696644322,-500.0,0.00016811,2]
[330659843,1719696644331,-500.0,0.00016811,2]
[330659844,1719696644341,-973.42,0.00016811,2]
[330659845,1719696644350,-500.0,0.00016811,2]
[330659846,1719696644361,-703.99,0.00016811,2]
[330659847,1719696644370,-500.0,0.00016811,2]
[330659848,1719696644382,-500.0,0.00016811,2]
[330659849,1719696644392,-796.02,0.00016811,2]
[330659850,1719696644402,-500.0,0.00016811,2]
[330659851,1719696644411,-500.0,0.00016811,2]
[330659852,1719696644420,-500.0,0.00016811,2]
[330659853,1719696644430,-500.0,0.00016811,2]
[330659854,1719696644439,-500.0,0.00016811,2]
[330659855,1719696644544,-489.23677488,0.00016811,2]
[330659856,1719696644554,-509.25118071,0.00016811,2]
[330659857,1719696644563,-1592.91,0.00016811,2]
[330659858,1719696644573,-500.0,0.00016811,2]
[330659859,1719696644582,-516.06,0.00016811,2]
[330659860,1719696644591,-500.0,0.00016811,2]
[330659861,1719696644601,-500.0,0.00016811,2]
[330659862,1719696644612,-500.0,0.00016811,2]
[330659863,1719696644621,-500.0,0.00016811,2]
[330659864,1719696644630,-500.0,0.00016811,2]
[330659865,1719696644639,-500.0,0.00016811,2]
[330659866,1719696644648,-1648.71,0.00016811,2]
[330659867,1719696644658,-500.0,0.00016811,2]
[330659868,1719696644668,-500.0,0.00016811,2]
[330659869,1719696644677,-500.0,0.00016811,2]
[330659870,1719696644686,-500.0,0.00016811,2]
[330659871,1719696644695,-500.0,0.00016811,2]
[330659872,1719696644704,-886.44,0.00016811,2]
[330659873,1719696644714,-500.0,0.00016811,2]
[330659874,1719696644723,-500.0,0.00016811,2]
[330659875,1719696644732,-561.62053898,0.00016811,2]
[330659876,1719696644742,-500.0,0.00016811,2]
[330659877,1719696644751,-543.31358186,0.00016811,2]
[330659878,1719696644761,-500.0,0.00016811,2]
[330659879,1719696644770,-552.22497396,0.00016811,2]
[330659880,1719696644779,-500.0,0.00016811,2]
[330659881,1719696644788,-635.46,0.00016811,2]
[330659882,1719696644797,-500.0,0.00016811,2]
[330659883,1719696644807,-517.45401642,0.00016811,2]
[330659884,1719696644816,-2128.78,0.00016811,2]
[330659885,1719696644825,-503.67346105,0.00016811,2]
[330659886,1719696644834,-500.0,0.00016811,2]
[330659887,1719696644843,-936.22,0.00016811,2]
[330659888,1719696644852,-786.9,0.00016811,2]
[330659889,1719696644862,-503.63426398,0.00016811,2]
[330659890,1719696644871,-502.74076121,0.00016811,2]
[330659891,1719696644880,-505.32036226,0.00016811,2]
[330659892,1719696644889,-544.08425461,0.00016811,2]
[330659893,1719696644899,-500.0,0.00016811,2]
[330659894,1719696644908,-500.0,0.00016811,2]
[330659895,1719696644917,-500.0,0.00016811,2]
[330659896,1719696644926,-766.06,0.00016811,2]
[330659897,1719696644935,-500.0,0.00016811,2]
[330659898,1719696644944,-694.98,0.00016811,2]
[330659899,1719696644953,-791.56,0.00016811,2]
[330659900,1719696644972,-500.0,0.00016811,2]
[330659901,1719696644983,-500.0,0.00016811,2]
[330659902,1719696644994,-1270.92,0.00016811,2]
[330659903,1719696645004,-721.06,0.00016811,2]
[330659904,1719696645019,-500.0,0.00016811,2]
[330659905,1719696645029,-742.33,0.00016811,2]
[330659906,1719696645039,-1211.51,0.00016811,2]
[330659907,1719696645049,-21378.65,0.00016811,2]
[330659908,1719696645060,-501.86,0.00016811,2]
[330659909,1719696645070,-500.0,0.00016811,2]
[330659910,1719696645080,-500.0,0.00016811,2]
[330659911,1719696645090,-523.34,0.00016811,2]
[330659912,1719696645100,-500.0,0.00016811,2]
[330659913,1719696645111,-207.14171265,0.00016811,2]
[330659914,1719696645120,-500.0,0.00016811,2]
[330659915,1719696645129,-500.0,0.00016811,2]
[330659916,1719696645139,-500.0,0.00016811,2]
[330659917,1719696645148,-500.0,0.00016811,2]
[330659918,1719696645158,-500.0,0.00016811,2]
[330659919,1719696645168,-500.0,0.00016811,2]
[330659920,1719696645178,-509.753633,0.00016811,2]
[330659921,1719696645188,-500.0,0.00016811,2]
[330659922,1719696645198,-500.0,0.00016811,2]
[330659923,1719696645208,-639.74966452,0.00016811,2]
[330659924,1719696645217,-502.12594287,0.00016811,2]
[330659925,1719696645227,-728.59,0.00016811,2]
[330659926,1719696645237,-616.55,0.00016811,2]
[330659928,1719696645247,-355.7145844,0.00016811,2]
[330659930,1719696645256,-500.0,0.00016811,2]
[330659932,1719696645266,-1111.67,0.00016811,2]
[330659934,1719696645276,-500.0,0.00016811,2]
[330659936,1719696645285,-500.0,0.00016811,2]
[330659938,1719696645294,-500.0,0.00016811,2]
[330659940,1719696645304,-500.0,0.00016811,2]
[330659942,1719696645313,-500.0,0.00016811,2]
[330659944,1719696645322,-500.0,0.00016811,2]
[330659946,1719696645332,-618.86,0.00016811,2]
[330659948,1719696645341,-500.0,0.00016812,2]
[330659950,1719696645351,-1030.9,0.00016812,2]
[330659952,1719696645361,-1532.97,0.00016812,2]
[330659954,1719696645371,-1245.15,0.00016812,2]
[330659956,1719696645380,-1020.23,0.00016812,2]
[330659958,1719696645390,-501.6149822,0.00016812,2]
[330659960,1719696645399,-453.97202008,0.00016812,2]
[330659962,1719696645409,-500.0,0.00016812,2]
[330659964,1719696645418,-559.34,0.00016812,2]
[330659966,1719696645427,-500.0,0.00016812,2]
[330659968,1719696645437,-1201.22,0.00016812,2]
[330659970,1719696645446,-2260.21,0.00016812,2]
[330659972,1719696645456,-500.0,0.00016812,2]
[330659973,1719696645465,-500.0,0.00016812,2]
[330659974,1719696645475,-1330.08,0.00016812,2]
[330659975,1719696645484,-500.0,0.00016812,2]
[330659976,1719696645494,-500.0,0.00016812,2]
[330659977,1719696645503,-501.81138205,0.00016812,2]
[330659978,1719696645513,-2668.9,0.00016812,2]
[330659979,1719696645522,-500.0,0.00016812,2]
[330659980,1719696645532,-1091.87,0.00016812,2]
[330659981,1719696645541,-1225.11,0.00016812,2]
[330659982,1719696645551,-500.0,0.00016812,2]
[330659983,1719696645561,-659.04,0.00016812,2]
[330659984,1719696645570,-1298.43,0.00016812,2]
[330659985,1719696645579,-500.0,0.00016812,2]
[330659986,1719696645589,-500.0,0.00016812,2]
[330659987,1719696645598,-775.76,0.00016812,2]
[330659988,1719696645608,-2410.65,0.00016812,2]
[330659989,1719696645617,-630.15,0.00016812,2]
[330659990,1719696645627,-1539.13,0.00016812,2]
[330659991,1719696645637,-505.18301685,0.00016812,2]
[330659992,1719696645646,-500.0,0.00016812,2]
[330659993,1719696645656,-2764.79,0.00016812,2]
[330659994,1719696645666,-500.0,0.00016812,2]
[330659995,1719696645675,-1647.97,0.00016812,2]
[330659996,1719696645685,-500.0,0.00016812,2]
[330659997,1719696645694,-502.85705705,0.00016812,2]
[330659998,1719696645703,-1111.82,0.00016812,2]
[330659999,1719696645713,-506.05663068,0.00016812,2]
[330660000,1719696645723,-617.55,0.00016812,2]
[330660001,1719696645733,-500.0,0.00016812,2]
[330660002,1719696645742,-951.95,0.00016812,2]
[330660003,1719696645752,-2912.55,0.00016812,2]
[330660004,1719696645762,-500.0,0.00016812,2]
[330660005,1719696645771,-500.0,0.00016812,2]
[330660006,1719696645781,-500.0,0.00016812,2]
[330660008,1719696645790,-500.0,0.00016812,2]
[330660010,1719696645799,-500.0,0.00016812,2]
[330660012,1719696645808,-1631.42,0.00016812,2]
[330660014,1719696645820,-599.84,0.00016812,2]
[330660016,1719696645830,-503.42668464,0.00016812,2]
[330660018,1719696645839,-1632.41,0.00016812,2]
[330660020,1719696645848,-1355.74,0.00016812,2]
[330660022,1719696645858,-672.43,0.00016812,2]
[330660024,1719696645867,-500.0,0.00016812,2]
[330660026,1719696645877,-500.0,0.00016812,2]
[330660028,1719696645886,-504.96593467,0.00016812,2]
[330660029,1719696645895,-209.93021692,0.00016812,2]
[330660031,1719696645904,-500.0,0.00016813,2]
[330660033,1719696645913,-197.18,0.00016813,2]
[330660049,1719696646034,-500.0,0.00016814,2]
[330660051,1719696646044,-504.87454024,0.00016814,2]
[330660053,1719696646053,-500.0,0.00016814,2]
[330660055,1719696646064,-612.06212683,0.00016814,2]
[330660057,1719696646073,-500.0,0.00016814,2]
[330660059,1719696646083,-500.0,0.00016814,2]
[330660061,1719696646092,-500.0,0.00016814,2]
[330660062,1719696646102,-500.0,0.00016814,2]
[330660064,1719696646113,-500.0,0.00016814,2]
[330660066,1719696646122,-500.0,0.00016814,2]
[330660068,1719696646131,-503.14320585,0.00016814,2]
[330660070,1719696646140,-500.0,0.00016814,2]
[330660072,1719696646149,-1480.6,0.00016814,2]
[330660074,1719696646159,-500.0,0.00016814,2]
[330660076,1719696646169,-799.4,0.00016814,2]
[330660078,1719696646178,-536.73053827,0.00016814,2]
[330660080,1719696646187,-500.0,0.00016814,2]
[330660082,1719696646197,-500.0,0.00016814,2]
[330660084,1719696646206,-604.51,0.00016814,2]
[330660086,1719696646216,-502.91128051,0.00016814,2]
[330660088,1719696646225,-500.0,0.00016814,2]
[330660090,1719696646235,-500.0,0.00016814,2]
[330660092,1719696646244,-500.0,0.00016814,2]
[330660094,1719696646253,-500.0,0.00016814,2]
[330660096,1719696646263,-941.64,0.00016814,2]
[330660098,1719696646271,-500.0,0.00016814,2]
[330660100,1719696646280,-502.41172655,0.00016814,2]
[330660102,1719696646289,-568.23,0.00016814,2]
[330660104,1719696646299,-334.94169894,0.00016814,2]
[330660132,1719696646553,-1732.51830106,0.00016814,2]
[330660134,1719696646563,-500.0,0.00016814,2]
[330660136,1719696646572,-530.02,0.00016814,2]
[330660138,1719696646581,-500.0,0.00016814,2]
[330660141,1719696646591,-500.0,0.00016814,2]
[330660144,1719696646599,-500.0,0.00016814,2]
[330660146,1719696646609,-500.0,0.00016814,2]
[330660148,1719696646618,-500.0,0.00016814,2]
[330660150,1719696646627,-809.95,0.00016814,2]
[330660152,1719696646636,-500.0,0.00016814,2]
[330660154,1719696646645,-500.0,0.00016814,2]
[330660156,1719696646654,-500.0,0.00016814,2]
[330660158,1719696646663,-501.60554147,0.00016814,2]
[330660159,1719696646672,-500.0,0.00016814,2]
[330660161,1719696646682,-500.0,0.00016814,2]
[330660163,1719696646691,-710.22,0.00016814,2]
[330660165,1719696646700,-500.0,0.00016814,2]
[330660167,1719696646709,-500.0,0.00016814,2]
[330660169,1719696646718,-500.0,0.00016814,2]
[330660171,1719696646727,-500.0,0.00016814,2]
[330660173,1719696646738,-500.0,0.00016814,2]
[330660175,1719696646747,-500.0,0.00016814,2]
[330660177,1719696646757,-891.89,0.00016814,2]
[330660179,1719696646767,-500.0,0.00016814,2]
[330660181,1719696646776,-500.0,0.00016814,2]
[330660183,1719696646785,-500.0,0.00016814,2]
[330660185,1719696646795,-500.0,0.00016814,2]
[330660187,1719696646804,-500.0,0.00016814,2]
[330660189,1719696646813,-500.0,0.00016814,2]
[330660191,1719696646821,-370.24137715,0.00016814,2]
[330660201,1719696647520,-129.75862285,0.00016814,2]
[330660202,1719696647529,-500.0,0.00016814,2]
[330660203,1719696647538,-1910.58,0.00016814,2]
[330660204,1719696647547,-500.0,0.00016814,2]
[330660205,1719696647557,-500.0,0.00016814,2]
[330660207,1719696647566,-500.0,0.00016814,2]
[330660209,1719696647575,-500.0,0.00016814,2]
[330660211,1719696647584,-501.99860735,0.00016814,2]
[330660213,1719696647594,-501.78231271,0.00016814,2]
[330660215,1719696647603,-836.02,0.00016814,2]
[330660217,1719696647613,-501.39262462,0.00016814,2]
[330660219,1719696647624,-418.73255995,0.00016814,2]
[330660221,1719696647633,-500.0,0.00016814,2]
[330660223,1719696647645,-500.0,0.00016814,2]
[330660225,1719696647655,-500.0,0.00016814,2]
[330660227,1719696647664,-502.60857858,0.00016814,2]
[330660229,1719696647673,-500.0,0.00016814,2]
[330660231,1719696647683,-351.94864869,0.00016814,2]
[330660643,1719696659999,193.75,0.00010959,2]
[330660644,1719696701299,309.59752322,0.00013283,2]
[330660645,1719696716116,400.09391473,0.00013283,2]
[330660646,1719696718498,524.10611979,0.00013283,2]
[330660647,1719696725686,500.0,0.00013283,2]
[330660648,1719696766016,267.9527671,0.00014999,7]
[330660649,1719696827151,293.16763086,0.00014999,2]
[330660662,1719697336408,5674.81319871,0.00026,120]
[330660669,1719697705328,3000.0,0.00014782,2]
[330660670,1719697740588,-304.0616908,0.00015393,2]
[330660671,1719697740618,-367.05727784,0.00015406,2]
[330660672,1719697740659,-334.63364236,0.00015406,2]
[330660673,1719697740689,-336.48532628,0.00015414,2]
[330660674,1719697740726,-329.35016849,0.00015414,2]
[330660676,1719697765484,-704.55073076,0.00015414,2]
[330660677,1719697765542,-704.55073076,0.00015414,2]
[330660678,1719697765604,-181.27912856,0.00015414,2]
[330660694,1719697832474,-1332.28760033,0.00015414,2]
[330660697,1719697832486,-1390.0,0.00015414,2]
[330660701,1719697832607,-3792.74837424,0.00015414,2]
[330660702,1719697832620,-315.71,0.00015414,2]
[330660748,1719697838647,-5266.56,0.00015414,2]
[330660750,1719697838659,-525.71191523,0.00015414,2]
[330660766,1719697838802,-10010.76602535,0.00015414,2]
[330660768,1719697838815,-233.8563631,0.00015686,2]
[330660770,1719697838825,-153.0,0.000165,2]
[330660772,1719697838835,-153.0,0.000165,2]
[330660774,1719697838845,-308.3338013,0.000165,2]
[330660776,1719697838854,-153.0,0.000165,2]
[330660778,1719697838863,-414.8330909,0.000165,2]
[330660780,1719697838873,-5285.14289515,0.00016574,2]
[330660782,1719697838883,-153.0,0.000166,2]
[330660784,1719697838893,-153.0,0.000166,2]
[330660786,1719697838902,-153.0,0.000166,2]
[330660788,1719697838911,-2000.0,0.00016612,2]
[330660790,1719697838922,-153.0,0.00016652,2]
[330660792,1719697838931,-153.0,0.000167,2]
[330660794,1719697838940,-153.0,0.000167,2]
[330660796,1719697838949,-153.0,0.000167,2]
[330660798,1719697838959,-153.0,0.000167,2]
[330660800,1719697838969,-153.0,0.000167,2]
[330660802,1719697838979,-153.0,0.000167,2]
[330660804,1719697838988,-153.0,0.000167,2]
[330660806,1719697838998,-153.0,0.000167,2]
[330660808,1719697839008,-8832.58,0.00016707,2]
[330660810,1719697839018,-530.62,0.00016707,2]
[330660812,1719697839028,-2588.58,0.00016707,2]
[330660814,1719697839039,-6885.39,0.00016707,2]
[330660816,1719697839050,-500.0,0.00016707,2]
[330660818,1719697839062,-500.0,0.00016708,2]
[330660820,1719697839072,-500.0,0.00016708,2]
[330660822,1719697839086,-500.0,0.00016708,2]
[330660824,1719697839095,-500.0,0.00016708,2]
[330660826,1719697839106,-560.75,0.00016708,2]
[330660828,1719697839116,-500.0,0.00016708,2]
[330660830,1719697839126,-501.9338835,0.00016708,2]
[330660832,1719697839136,-503.32845027,0.00016708,2]
[330660833,1719697839146,-500.0,0.00016708,2]
[330660834,1719697839156,-803.16,0.00016708,2]
[330660835,1719697839166,-500.0,0.00016708,2]
[330660836,1719697839177,-502.6265869,0.00016708,2]
[330660837,1719697839189,-500.0,0.00016708,2]
[330660838,1719697839199,-500.0,0.00016708,2]
[330660839,1719697839209,-500.0,0.00016708,2]
[330660840,1719697839220,-572.16,0.00016708,2]
[330660841,1719697839230,-500.0,0.00016708,2]
[330660842,1719697839241,-182.04441726,0.00016708,2]
[330660843,1719697839251,-1095.56,0.00016708,2]
[330660844,1719697839261,-500.0,0.00016708,2]
[330660845,1719697839271,-258.26323226,0.00016708,2]
[330660846,1719697839281,-514.259048,0.00016708,2]
[330660847,1719697839290,-500.0,0.00016708,2]
[330660848,1719697839300,-500.0,0.00016708,2]
[330660849,1719697839313,-500.0,0.00016708,2]
[330660850,1719697839323,-500.0,0.00016708,2]
[330660851,1719697839332,-500.0,0.00016708,2]
[330660853,1719697839342,-500.0,0.00016708,2]
[330660854,1719697839352,-500.0,0.00016708,2]
[330660855,1719697839365,-500.0,0.00016708,2]
[330660856,1719697839375,-500.0,0.00016708,2]
[330660857,1719697839384,-503.93431625,0.00016708,2]
[330660872,1719697839518,-500.0,0.00016708,2]
[330660874,1719697839529,-500.0,0.00016708,2]
[330660876,1719697839539,-500.0,0.00016708,2]
[330660878,1719697839548,-591.6073151,0.00016708,2]
[330660880,1719697839561,-500.0,0.00016708,2]
[330660882,1719697839570,-966.25,0.00016708,2]
[330660884,1719697839583,-504.92118705,0.00016708,2]
[330660886,1719697839592,-500.0,0.00016708,2]
[330660888,1719697839602,-500.0,0.00016708,2]
[330660890,1719697839612,-241.66002904,0.00016708,2]
[330660892,1719697839623,-695.74,0.00016708,2]
[330660894,1719697839633,-500.0,0.00016708,2]
[330660896,1719697839643,-500.0,0.00016708,2]
[330660898,1719697839652,-832.47,0.00016708,2]
[330660900,1719697839662,-500.0,0.00016708,2]
[330660902,1719697839672,-500.0,0.00016708,2]
[330660903,1719697839682,-500.0,0.00016708,2]
[330660906,1719697839693,-500.0,0.00016708,2]
[330660907,1719697839703,-500.0,0.00016708,2]
[330660910,1719697839713,-500.0,0.00016708,2]
[330660911,1719697839723,-500.0,0.00016708,2]
[330660913,1719697839732,-500.0,0.00016708,2]
[330660915,1719697839742,-503.29529784,0.00016708,2]
[330660917,1719697839752,-1526.54,0.00016708,2]
[330660919,1719697839762,-501.83608758,0.00016708,2]
[330660922,1719697839773,-500.0,0.00016708,2]
[330660924,1719697839783,-517.21,0.00016708,2]
[330660926,1719697839793,-500.0,0.00016708,2]
[330660928,1719697839803,-500.0,0.00016708,2]
[330660929,1719697839816,-500.0,0.00016708,2]
[330660931,1719697839826,-2249.42,0.00016708,2]
[330660934,1719697839836,-500.0,0.00016708,2]
[330660936,1719697839847,-500.0,0.00016708,2]
[330660938,1719697839858,-512.02879598,0.00016708,2]
[330660940,1719697839867,-500.0,0.00016708,2]
[330660942,1719697839877,-754.54,0.00016709,2]
[330660944,1719697839887,-500.0,0.00016709,2]
[330660945,1719697839896,-486.19324516,0.00016709,2]
[330660948,1719697839906,-52629.26,0.00016709,2]
[330660949,1719697839916,-6323.33,0.00016709,2]
[330660952,1719697839926,-10168.29,0.00016709,2]
[330660953,1719697839936,-3920.53,0.00016709,2]
[330660955,1719697839946,-504.55555756,0.00016709,2]
[330660957,1719697839956,-500.0,0.00016709,2]
[330660960,1719697839966,-500.0,0.00016709,2]
[330660961,1719697839976,-500.0,0.00016709,2]
[330660963,1719697839986,-1565.46,0.00016709,2]
[330660965,1719697839996,-619.4,0.00016709,2]
[330660968,1719697840006,-9826.12,0.00016709,2]
[330660970,1719697840016,-19641.7135224,0.0001671,7]
[330660972,1719697840026,-579.48,0.0001671,2]
[330660974,1719697840036,-500.0,0.0001671,2]
[330660975,1719697840046,-500.0,0.0001671,2]
[330660978,1719697840056,-3392.37,0.0001671,2]
[330660980,1719697840067,-500.0,0.0001671,2]
[330660982,1719697840078,-500.0,0.0001671,2]
[330660984,1719697840089,-1016.26,0.0001671,2]
[330660986,1719697840100,-837.48,0.0001671,2]
[330660988,1719697840111,-649.61,0.0001671,2]
[330660990,1719697840121,-500.0,0.0001671,2]
[330660992,1719697840131,-3975.82,0.0001671,2]
[330660994,1719697840142,-500.0,0.0001671,2]
[330660996,1719697840152,-281.12208792,0.0001671,2]
[330660998,1719697840162,-500.0,0.0001671,2]
[330661000,1719697840172,-500.0,0.0001671,2]
[330661002,1719697840182,-534.07773022,0.0001671,2]
[330661004,1719697840192,-762.69,0.0001671,2]
[330661006,1719697840203,-618.3,0.0001671,2]
[330661008,1719697840212,-648.44,0.0001671,2]
[330661010,1719697840222,-500.0,0.0001671,2]
[330661011,1719697840231,-732.46,0.0001671,2]
[330661013,1719697840240,-500.0,0.0001671,2]
[330661015,1719697840249,-3453.55,0.0001671,2]
[330661017,1719697840259,-500.0,0.0001671,2]
[330661020,1719697840268,-9050.83,0.0001671,2]
[330661022,1719697840277,-4064.8,0.0001671,2]
[330661024,1719697840287,-500.0,0.0001671,2]
[330661025,1719697840296,-4838.75,0.0001671,2]
[330661027,1719697840305,-327.89054527,0.0001671,2]
[330661030,1719697840316,-903.09,0.0001671,2]
[330661032,1719697840325,-500.0,0.0001671,2]
[330661034,1719697840335,-842.93,0.0001671,2]
[330661036,1719697840344,-500.0,0.0001671,2]
[330661038,1719697840354,-501.57102348,0.0001671,2]
[330661040,1719697840365,-500.0,0.0001671,2]
[330661041,1719697840375,-3721.73,0.0001671,2]
[330661044,1719697840384,-500.0,0.0001671,2]
[330661045,1719697840393,-1017.51,0.0001671,2]
[330661047,1719697840403,-10928.21747608,0.0001671,2]
[330661050,1719697840418,-1185.11216404,0.0001671,2]
[330661052,1719697840430,-594.46396655,0.0001671,2]
[330661095,1719697840854,-137.36639333,0.0001671,2]
[330661097,1719697840864,-723.70860667,0.0001671,2]
[330661100,1719697840875,-265.75139333,0.0001671,2]
[330661102,1719697840885,-247.23860667,0.0001671,2]
[330661337,1719697843649,-723.1,0.00016707,2]
[330661339,1719697843658,-500.0,0.00016708,2]
[330661340,1719697843668,-3771.17,0.00016709,2]
[330661342,1719697843677,-258.58318232,0.0001671,2]
[330661344,1719697843687,-500.0,0.0001671,2]
[330661347,1719697843696,-500.0,0.0001671,2]
[330661348,1719697843706,-500.0,0.0001671,2]
[330661351,1719697843715,-500.0,0.0001671,2]
[330661352,1719697843724,-1185.63,0.0001671,2]
[330661355,1719697843734,-1175.2,0.0001671,2]
[330661356,1719697843744,-1635.83,0.0001671,2]
[330661358,1719697843753,-525.31,0.0001671,2]
[330661360,1719697843763,-500.0,0.0001671,2]
[330661362,1719697843772,-506.92624368,0.0001671,2]
[330661364,1719697843781,-1250.4776316,0.0001671,2]
[330661386,1719697843977,-226.4123684,0.0001671,2]
[330661388,1719697843986,-42.9380376,0.0001671,2]
[330661549,1719697846720,-746.42,0.00016707,2]
[330661550,1719697846729,-2311.8719624,0.0001671,2]
[330661551,1719697846739,-1050.06,0.0001671,2]
[330661552,1719697846748,-500.0,0.0001671,2]
[330661553,1719697846757,-506.45213534,0.0001671,2]
[330661554,1719697846766,-734.02,0.0001671,2]
[330661555,1719697846775,-500.0,0.0001671,2]
[330661556,1719697846784,-2201.87,0.0001671,2]
[330661557,1719697846793,-500.0,0.0001671,2]
[330661558,1719697846802,-4390.06,0.0001671,2]
[330661559,1719697846811,-560.39,0.0001671,2]
[330661560,1719697846820,-500.0,0.0001671,2]
[330661561,1719697846828,-1042.32,0.0001671,2]
[330661562,1719697846837,-843.35,0.00016711,2]
[330661563,1719697846847,-6500.94510719,0.00016711,2]
[330661564,1719697846859,-10055.45489281,0.00016711,2]
[330661565,1719697846869,-1228.05,0.00016711,2]
[330661566,1719697846878,-20487.88,0.00016711,2]
[330661567,1719697846886,-500.0,0.00016711,2]
[330661568,1719697846895,-500.0,0.00016711,2]
[330661569,1719697846904,-500.0,0.00016711,2]
[330661570,1719697846913,-176.49,0.00016711,2]
[330661571,1719697846922,-13994.97,0.00016711,2]
[330661572,1719697846931,-4205.04,0.00016711,2]
[330661573,1719697846939,-1094.84,0.00016711,2]
[330661574,1719697846949,-2798.96,0.00016711,2]
[330661575,1719697846957,-2798.96,0.00016711,2]
[330661576,1719697846967,-2798.96,0.00016711,2]
[330661577,1719697846975,-7656.42800831,0.00016712,7]
[330661578,1719697846984,-500.0,0.00016712,2]
[330661579,1719697846993,-500.0,0.00016712,2]
[330661580,1719697847002,-1601.55,0.00016712,2]
[330661581,1719697847011,-500.0,0.00016712,2]
[330661582,1719697847020,-500.0,0.00016712,2]
[330661583,1719697847030,-500.0,0.00016712,2]
[330661584,1719697847038,-500.0,0.00016712,2]
[330661585,1719697847047,-500.0,0.00016712,2]
[330661586,1719697847057,-500.0,0.00016712,2]
[330661587,1719697847067,-870.34,0.00016712,2]
[330661588,1719697847076,-500.0,0.00016712,2]
[330661589,1719697847085,-500.0,0.00016712,2]
[330661590,1719697847095,-500.0,0.00016712,2]
[330661591,1719697847104,-500.0,0.00016712,2]
[330661592,1719697847113,-500.0,0.00016712,2]
[330661593,1719697847122,-501.77381646,0.00016712,2]
[330661594,1719697847131,-500.0,0.00016712,2]
[330661595,1719697847139,-500.0,0.00016712,2]
[330661596,1719697847148,-500.0,0.00016712,2]
[330661597,1719697847157,-500.0,0.00016712,2]
[330661598,1719697847166,-500.0,0.00016712,2]
[330661599,1719697847175,-169.09726661,0.00016712,2]
[330661600,1719697847185,-500.0,0.00016712,2]
[330661601,1719697847195,-641.18,0.00016712,2]
[330661602,1719697847204,-500.0,0.00016712,2]
[330661603,1719697847213,-500.0,0.00016712,2]
[330661604,1719697847223,-500.0,0.00016712,2]
[330661605,1719697847232,-500.0,0.00016712,2]
[330661606,1719697847241,-500.0,0.00016712,2]
[330661607,1719697847251,-516.16536763,0.00016712,2]
[330661608,1719697847261,-2040.08,0.00016712,2]
[330661609,1719697847270,-500.0,0.00016712,2]
[330661610,1719697847280,-500.0,0.00016712,2]
[330661611,1719697847289,-501.44111769,0.00016712,2]